bitfinex-derivatives/quotes_ETHF0:USTF0_20230830
["timestamp","ask_amount","ask_price","bid_price","bid_amount"]
[1693356713093,6.97013695,1723.2,1723.0,8.127]
[1693356714104,3.76233695,1723.1,1723.0,8.127]
[1693356714307,3.76233695,1723.1,1722.9,6.16031824]
[1693356716205,3.76233695,1723.1,1722.9,14.28731824]
[1693356717705,3.76233695,1723.1,1722.9,8.127]
[1693356717904,17.76317173,1723.0,1722.8,0.008706]
[1693356718106,23.79177206,1722.9,1722.8,0.008706]
[1693356718412,8.127,1722.9,1722.8,0.008706]
[1693356719305,12.64737914,1722.9,1722.8,0.008706]
[1693356719504,8.127,1722.9,1722.8,0.008706]
[1693356722409,17.4152,1722.9,1722.2,2.7598]
[1693356722609,8.127,1722.3,1722.2,0.2962]
[1693356723311,3.2078,1722.4,1722.2,0.2962]
[1693356723714,3.2078,1722.4,1722.3,11.83051824]
[1693356725411,3.2078,1722.6,1722.3,19.95751824]
[1693356725613,3.2078,1722.8,1722.5,8.127]
[1693356725811,3.2078,1722.8,1722.6,11.83051824]
[1693356726011,3.2078,1722.8,1722.6,8.127]
[1693356726317,3.2078,1722.8,1722.7,11.83051824]
[1693356726508,3.2078,1722.8,1722.7,8.127]
[1693356726912,3.2078,1722.8,1722.7,11.83051824]
[1693356728015,0.45911386,1722.9,1722.7,11.83051824]
[1693356728313,6.66099156,1723.0,1722.7,11.83051824]
[1693356728510,3.2078,1723.0,1722.7,11.83051824]
[1693356729814,11.3348,1723.0,1722.7,3.70351824]
[1693356732423,8.4338,1723.0,1722.7,8.92951824]
[1693356734514,3.2078,1723.0,1722.9,5.226]
[1693356734713,3.2078,1723.0,1722.9,8.92951824]
[1693356741523,6.21861686,1723.0,1722.9,8.92951824]
[1693356745213,3.2078,1723.0,1722.9,5.226]
[1693356745419,8.4338,1723.0,1722.8,0.008706]
[1693356745620,3.0112633,1722.9,1722.8,0.008706]
[1693356746124,3.0112633,1722.9,1722.8,1.44228776]
[1693356748429,12.19942031,1723.0,1722.8,1.44228776]
[1693356748726,6.97342031,1723.0,1722.9,7.49593648]
[1693356751522,6.97342031,1723.0,1722.9,5.226]
[1693356755023,3.76562031,1723.0,1722.9,5.226]
[1693356757432,3.01386556,1723.0,1722.9,5.226]
[1693356757627,2.44217156,1723.1,1722.9,5.45302447]
[1693356757927,0.008706,1723.1,1723.0,12.13731824]
[1693356758319,3.19392631,1723.2,1723.0,17.18391824]
[1693356758521,3.19392631,1723.2,1723.1,5.226]
[1693356758721,2.99412631,1723.2,1723.1,5.226]
[1693356759728,2.61362631,1723.2,1723.1,5.226]
[1693356760523,2.03332631,1723.2,1723.1,6.65958176]
[1693356761125,0.351331,1723.3,1723.1,6.65958176]
[1693356761332,7.72817914,1723.4,1723.1,6.65958176]
[1693356761928,12.95417914,1723.4,1723.1,6.65958176]
[1693356763633,7.72817914,1723.4,1723.2,2.26993648]
[1693356763931,7.72817914,1723.4,1723.3,1.43358176]
[1693356764927,8.18878983,1723.4,1723.3,1.43358176]
[1693356765829,8.18878983,1723.4,1723.2,2.26993648]
[1693356766029,8.18878983,1723.4,1723.3,1.43358176]
[1693356766428,8.18878983,1723.4,1723.2,2.26993648]
[1693356766623,8.18878983,1723.4,1723.3,1.43358176]
[1693356768130,8.18878983,1723.4,1723.2,2.26993648]
[1693356768330,8.18878983,1723.4,1723.3,1.43358176]
[1693356768730,8.18878983,1723.4,1723.2,2.26993648]
[1693356768932,8.18878983,1723.4,1723.2,3.70351824]
[1693356771131,8.18878983,1723.4,1723.2,2.26993648]
[1693356771333,4.52037914,1723.3,1723.2,2.26993648]
[1693356771535,4.52037914,1723.3,1723.2,3.70351824]
[1693356771932,4.52037914,1723.3,1723.2,8.92951824]
[1693356778536,8.18878983,1723.4,1723.2,8.92951824]
[1693356779331,4.52037914,1723.3,1723.2,8.92951824]
[1693356784135,4.52037914,1723.4,1723.3,5.226]
[1693356784431,6.77220651,1723.7,1723.4,4.86381824]
[1693356784647,10.56119061,1723.9,1723.6,5.226]
[1693356784841,9.98000651,1724.0,1723.8,5.226]
[1693356785032,9.39980651,1724.0,1723.9,5.226]
[1693356785232,8.81970651,1724.0,1723.9,5.226]
[1693356785436,8.81970651,1724.0,1723.9,6.65958176]
[1693356785740,2.5132647,1724.0,1723.9,6.65958176]
[1693356786835,0.4657647,1724.0,1723.9,6.65958176]
[1693356787142,4.09825984,1724.2,1723.9,6.65958176]
[1693356787337,3.67225984,1724.2,1724.1,5.226]
[1693356787531,3.2078,1724.2,1724.1,6.65958176]
[1693356787738,3.2078,1724.2,1724.1,5.226]
[1693356788039,8.9016224,1724.2,1723.9,5.226]
[1693356788243,3.2078,1724.0,1723.9,5.226]
[1693356789840,3.2078,1724.0,1723.9,6.65958176]
[1693356790245,3.2078,1724.0,1723.9,5.226]
[1693356791049,3.2078,1724.0,1723.9,6.65958176]
[1693356792542,3.2078,1724.0,1723.9,9.17288176]
[1693356793045,3.6756224,1724.2,1723.9,9.17288176]
[1693356793245,3.2078,1724.2,1724.1,5.226]
[1693356793540,3.2078,1724.2,1724.1,6.65958176]
[1693356794343,0.45839618,1724.3,1724.1,6.65958176]
[1693356794649,16.97712261,1724.4,1724.1,6.65958176]
[1693356796037,11.75112261,1724.4,1724.2,5.226]
[1693356796438,5.2718119,1724.3,1724.2,5.226]
[1693356796843,5.2718119,1724.3,1724.2,6.65958176]
[1693356797146,10.9972119,1724.4,1724.2,6.65958176]
[1693356797350,11.45235869,1724.4,1724.3,5.226]
[1693356798441,8.93475869,1724.4,1724.3,5.226]
[1693356799142,3.66294679,1724.4,1724.3,5.226]
[1693356799342,8.18153237,1724.4,1724.3,5.226]
[1693356800646,3.66294679,1724.4,1724.3,5.226]
[1693356800846,8.93336288,1724.4,1724.3,5.226]
[1693356804250,8.93336288,1724.4,1724.2,1.43358176]
[1693356804446,4.51670563,1724.3,1724.1,5.226]
[1693356804651,6.78664211,1724.3,1724.2,2.5687]
[1693356807550,10.55001842,1724.3,1724.2,2.5687]
[1693356807855,6.03331279,1724.3,1724.2,2.5687]
[1693356811259,6.03331279,1724.3,1724.2,4.00228176]
[1693356812155,3.76337631,1724.3,1724.2,4.00228176]
[1693356815850,21.5982903,1724.4,1724.2,4.00228176]
[1693356819361,4.51670563,1724.3,1724.2,6.48318176]
[1693356821958,4.51670563,1724.3,1724.2,11.70918176]
[1693356823162,5.27041609,1724.3,1724.2,11.70918176]
[1693356824759,16.41009604,1724.3,1724.2,11.70918176]
[1693356825160,5.27041609,1724.3,1724.2,11.70918176]
[1693356826366,23.10698525,1724.4,1724.2,11.70918176]
[1693356827161,6.02572261,1724.3,1724.2,11.70918176]
[1693356827865,20.83704877,1724.4,1724.2,11.70918176]
[1693356828467,27.60925528,1724.4,1724.2,11.70918176]
[1693356828864,6.02572261,1724.3,1724.2,11.70918176]
[1693356832470,21.61184521,1724.4,1724.2,11.70918176]
[1693356832673,21.61184521,1724.4,1724.3,5.226]
[1693356833673,22.36745844,1724.4,1724.3,5.226]
[1693356833973,11.22777849,1724.4,1724.3,5.226]
[1693356837179,3.67164621,1724.4,1724.3,5.226]
[1693356837764,3.67164621,1724.4,1724.2,11.70918176]
[1693356837970,3.67164621,1724.4,1724.0,0.46579187]
[1693356837971,9.8301018,1724.3,1724.0,5.69179187]
[1693356838174,9.8301018,1724.3,1724.0,10.56949187]
[1693356838175,6.04791702,1724.1,1724.0,10.56949187]
[1693356838570,6.80390665,1724.1,1724.0,10.56949187]
[1693356838869,20.21352308,1724.1,1723.9,5.226]
[1693356839375,6.80390665,1724.0,1723.9,5.226]
[1693356842375,20.96978175,1724.1,1723.9,5.226]
[1693356843171,6.80517997,1724.0,1723.9,5.226]
[1693356843574,6.80517997,1724.0,1723.9,6.65958176]
[1693356851273,12.8532436,1724.0,1723.9,9.86738176]
[1693356851471,6.04806363,1724.0,1723.9,9.86738176]
[1693356852875,6.04806363,1724.0,1723.9,8.4338]
[1693356854281,6.04806363,1724.0,1723.9,5.226]
[1693356854587,6.04806363,1724.0,1723.8,5.34957838]
[1693356854588,6.80517997,1724.0,1723.8,10.57557838]
[1693356854788,8.31764182,1723.9,1723.8,10.57557838]
[1693356855086,8.31764182,1723.9,1723.8,10.11240095]
[1693356855582,8.31764182,1723.9,1723.8,7.67970095]
[1693356855789,15.12282179,1723.9,1723.8,5.23470095]
[1693356856087,20.21493861,1723.9,1723.8,5.23470095]
[1693356856684,20.21493861,1723.9,1723.8,0.00870095]
[1693356860080,25.44093861,1723.9,1723.8,0.00870095]
[1693356860278,31.82743861,1723.9,1723.2,5.226]
[1693356860482,7.73730471,1723.4,1723.2,5.226]
[1693356860683,2.26993648,1723.3,1723.2,5.226]
[1693356860978,6.79597994,1723.3,1723.2,5.226]
[1693356861989,6.79597994,1723.3,1723.1,5.68726259]
[1693356862183,6.79597994,1723.3,1723.1,5.226]
[1693356863082,2.26993648,1723.3,1723.1,5.226]
[1693356863287,6.79597994,1723.3,1723.1,5.226]
[1693356863897,2.26993648,1723.3,1723.1,5.226]
[1693356864195,3.2078,1723.2,1723.1,5.226]
[1693356864396,6.79597994,1723.3,1723.1,6.65958176]
[1693356864596,13.71822216,1723.4,1723.2,5.226]
[1693356864597,7.73384346,1723.4,1723.2,5.226]
[1693356864798,10.00377994,1723.4,1723.2,5.226]
[1693356865795,5.47773648,1723.4,1723.2,5.226]
[1693356865994,10.70373648,1723.4,1723.1,5.226]
[1693356866299,3.7642968,1723.2,1723.1,5.226]
[1693356867697,3.7642968,1723.2,1723.1,6.65958176]
[1693356867898,3.01062266,1723.2,1723.1,6.65958176]
[1693356868899,3.01062266,1723.3,1723.1,6.65958176]
[1693356869103,3.01062266,1723.3,1723.2,5.226]
[1693356869591,3.01062266,1723.3,1723.2,7.7673]
[1693356871899,8.9902968,1723.3,1722.9,5.68759293]
[1693356872200,2.25656812,1723.1,1722.9,5.68759293]
[1693356874096,10.2241046,1723.2,1722.9,5.68759293]
[1693356874396,2.25656812,1723.1,1722.9,5.68759293]
[1693356874897,5.47773648,1723.0,1722.7,7.7421]
[1693356875099,7.7343046,1723.0,1722.7,7.7421]
[1693356876897,5.47773648,1723.0,1722.7,7.7421]
[1693356877703,10.70373648,1723.0,1722.7,7.7421]
[1693356878395,3.2078,1723.0,1722.8,6.65958176]
[1693356878601,5.226,1723.1,1722.8,6.65958176]
[1693356878794,7.96287387,1723.2,1723.0,5.226]
[1693356878999,7.96287387,1723.2,1723.0,6.65958176]
[1693356879203,5.70630575,1723.2,1723.0,5.226]
[1693356879401,7.96287387,1723.2,1723.0,5.226]
[1693356879603,10.23281035,1723.2,1723.0,5.226]
[1693356879807,10.23281035,1723.2,1722.8,3.2078]
[1693356879808,5.226,1723.1,1722.8,8.4338]
[1693356880504,2.26993648,1723.0,1722.8,8.4338]
[1693356881193,2.26993648,1723.0,1722.8,3.2078]
[1693356881401,7.49593648,1723.0,1722.8,3.2078]
[1693356884503,10.70373648,1723.0,1722.7,7.7421]
[1693356886505,10.70373648,1723.0,1722.8,1.43358176]
[1693356890705,13.66242608,1723.2,1722.9,5.226]
[1693356890909,8.91605796,1723.2,1723.0,1.43358176]
[1693356891206,8.91605796,1723.2,1723.0,4.05508176]
[1693356891404,8.91605796,1723.2,1723.0,6.58028176]
[1693356892108,3.69005796,1723.2,1723.1,5.226]
[1693356892707,3.69005796,1723.2,1723.0,11.80628176]
[1693356893912,5.94662608,1723.2,1723.0,11.80628176]
[1693356896806,5.47307387,1723.2,1723.0,11.80628176]
[1693356897013,0.00870575,1723.2,1723.0,11.80628176]
[1693356899916,2.26527387,1723.2,1723.0,11.80628176]
[1693356901016,2.26527387,1723.2,1723.1,3.2078]
[1693356901214,2.26527387,1723.2,1723.1,8.4338]
[1693356905921,3.01746324,1723.2,1723.1,8.4338]
[1693356907321,0.00870575,1723.2,1723.1,8.4338]
[1693356908620,2.27070715,1723.2,1723.1,8.4338]
[1693356908821,0.00870575,1723.2,1723.1,8.4338]
[1693356909118,0.00870575,1723.2,1723.1,9.5943]
[1693356909322,2.17700715,1723.3,1723.1,9.5943]
[1693356909528,2.17700715,1723.3,1723.2,6.65958176]
[1693356909729,2.17700715,1723.3,1723.2,7.81998176]
[1693356910126,1.59670715,1723.3,1723.2,7.81998176]
[1693356910428,1.11010715,1723.3,1723.2,7.81998176]
[1693356910628,3.00875749,1723.4,1723.2,7.81998176]
[1693356910832,3.00875749,1723.5,1723.3,8.4338]
[1693356911129,3.00875749,1723.5,1723.4,6.65958176]
[1693356911625,2.74195749,1723.5,1723.4,6.65958176]
[1693356911829,2.16165749,1723.5,1723.4,6.65958176]
[1693356913124,3.7642968,1723.6,1723.4,6.65958176]
[1693356913528,3.7642968,1723.5,1723.4,6.65958176]
[1693356917924,3.7642968,1723.6,1723.4,6.65958176]
[1693356918128,3.7642968,1723.6,1723.5,5.226]
[1693356919424,3.7400968,1723.6,1723.5,5.226]
[1693356919835,3.2078,1723.8,1723.5,5.226]
[1693356920139,2.6276,1723.8,1723.7,5.226]
[1693356923231,2.98654707,1723.9,1723.7,5.226]
[1693356923452,4.52604346,1724.1,1723.8,6.65958176]
[1693356923739,9.75204346,1724.2,1723.9,8.4338]
[1693356923943,9.75204346,1724.2,1724.0,1.43358176]
[1693356924437,10.21659402,1724.2,1724.0,1.43358176]
[1693356925338,0.46455056,1724.2,1724.1,5.226]
[1693356925535,12.74614346,1724.3,1724.1,5.226]
[1693356925750,8.2201,1724.3,1724.2,1.43358176]
[1693356926238,5.668,1724.3,1724.2,1.43358176]
[1693356927745,5.668,1724.3,1724.1,5.226]
[1693356927943,5.668,1724.3,1724.1,6.65958176]
[1693356929454,6.1406549,1724.3,1724.1,6.65958176]
[1693356936156,6.1406549,1724.3,1724.0,5.23469968]
[1693356936157,2.26993648,1724.2,1724.0,5.23469968]
[1693356937248,2.26993648,1724.2,1724.0,6.66828144]
[1693356941854,5.27884686,1724.2,1724.0,6.66828144]
[1693356942855,10.50484686,1724.2,1724.0,0.00869968]
[1693356943067,8.4338,1724.1,1724.0,0.00869968]
[1693356943357,12.19291443,1724.1,1724.0,0.00869968]
[1693356944250,2.26993648,1724.0,1723.5,11.37593625]
[1693356944455,5.226,1723.8,1723.5,8.90863625]
[1693356944665,8.23585864,1723.8,1723.5,5.70083625]
[1693356944957,2.26993648,1723.7,1723.5,5.226]
[1693356945359,7.49593648,1723.7,1723.4,7.8028]
[1693356945560,5.226,1723.5,1723.2,6.3864]
[1693356945859,2.26993648,1723.4,1723.2,8.9632]
[1693356946058,2.26993648,1723.4,1723.2,9.43563691]
[1693356946353,2.4891,1723.6,1723.3,6.65958176]
[1693356946556,4.75903648,1723.6,1723.3,6.65958176]
[1693356946756,4.75903648,1723.6,1723.3,9.15858176]
[1693356946957,4.75903648,1723.6,1723.5,5.226]
[1693356947154,6.21765864,1723.7,1723.5,6.65958176]
[1693356947361,3.00985864,1723.7,1723.5,6.65958176]
[1693356949961,5.27979512,1723.6,1723.5,5.226]
[1693356950551,5.27979512,1723.6,1723.4,5.226]
[1693356951562,3.00985864,1723.5,1723.3,7.725]
[1693356951763,2.26993648,1723.4,1723.3,7.725]
[1693356952761,2.26993648,1723.4,1723.3,5.226]
[1693356952957,2.26993648,1723.4,1723.1,8.4338]
[1693356952958,7.49593648,1723.4,1723.1,8.4338]
[1693356953167,3.01267883,1723.2,1723.1,5.226]
[1693356953364,5.28261531,1723.2,1723.1,5.226]
[1693356953954,5.28261531,1723.2,1723.0,5.1307]
[1693356954156,5.28261531,1723.2,1723.0,2.4887]
[1693356955367,5.28261531,1723.2,1723.1,5.226]
[1693356957866,10.50861531,1723.2,1723.0,2.4887]
[1693356958070,10.50861531,1723.2,1722.9,8.4338]
[1693356961282,7.49593648,1723.2,1722.9,8.4338]
[1693356961476,10.50531904,1723.2,1722.9,8.4338]
[1693356961980,5.226,1723.1,1722.9,3.2078]
[1693356962375,5.27931904,1723.2,1723.0,6.65958176]
[1693356962679,2.26993648,1723.2,1723.0,6.65958176]
[1693356963074,5.27931904,1723.2,1723.0,6.65958176]
[1693356963475,2.26993648,1723.2,1723.0,6.65958176]
[1693356964682,16.85159425,1723.3,1723.0,6.65958176]
[1693356964683,5.91059425,1723.3,1723.1,5.226]
[1693356964984,0.46161169,1723.3,1723.2,1.43358176]
[1693356965172,8.23538256,1723.4,1723.2,1.43358176]
[1693356965679,8.23538256,1723.4,1723.2,3.89748176]
[1693356965876,3.00938256,1723.3,1723.2,3.89748176]
[1693356966682,3.47031465,1723.4,1723.2,9.12348176]
[1693356966982,3.47031465,1723.4,1723.3,5.226]
[1693356970577,3.47031465,1723.4,1723.2,9.12348176]
[1693356970876,2.25523911,1723.3,1723.2,9.12348176]
[1693356971586,2.25523911,1723.3,1723.2,9.13218574]
[1693356973189,0.46093209,1723.4,1723.2,9.13218574]
[1693356973190,2.25523911,1723.4,1723.2,9.13218574]
[1693356975191,2.26394334,1723.5,1723.3,8.4338]
[1693356975393,2.26394334,1723.5,1723.4,1.43358176]
[1693356977287,2.26394334,1723.5,1723.4,6.65958176]
[1693356977488,1.67503911,1723.7,1723.4,7.81988176]
[1693356977686,1.67503911,1723.7,1723.6,5.226]
[1693356977986,1.57453911,1723.7,1723.6,6.65958176]
[1693356978187,1.09483911,1723.7,1723.6,6.65958176]
[1693356978387,0.51463911,1723.7,1723.6,6.65958176]
[1693356981592,3.01906159,1723.8,1723.6,6.65958176]
[1693356982294,2.79276159,1723.8,1723.6,6.65958176]
[1693356984493,2.43896159,1723.8,1723.6,6.65958176]
[1693356985796,3.77165112,1723.9,1723.6,6.65958176]
[1693356986291,6.0415876,1723.9,1723.6,9.25458176]
[1693356987687,3.76294891,1723.8,1723.6,9.25458176]
[1693356988092,6.0415876,1723.9,1723.6,9.25458176]
[1693356988487,3.76294891,1723.8,1723.6,9.25458176]
[1693356989492,6.0415876,1723.9,1723.6,9.25458176]
[1693356989692,3.76294891,1723.8,1723.6,9.25458176]
[1693356990484,3.76294891,1723.8,1723.6,7.821]
[1693356991093,3.76294891,1723.8,1723.6,9.25458176]
[1693356991483,3.77165112,1723.9,1723.6,9.25458176]
[1693356991884,3.77165112,1723.9,1723.8,5.226]
[1693356992293,3.77165112,1723.9,1723.8,6.65958176]
[1693356992489,3.77165112,1723.9,1723.8,9.10938176]
[1693356994492,8.99979759,1723.9,1723.6,7.821]
[1693356994693,8.99979759,1723.9,1723.6,10.2708]
[1693356994884,3.76509538,1723.8,1723.6,10.2708]
[1693356995289,3.76509538,1723.8,1723.6,11.70438176]
[1693356995485,8.99109538,1723.8,1723.6,5.0448]
[1693356995685,3.76509538,1723.7,1723.5,5.67918138]
[1693356995897,6.97289538,1723.7,1723.5,5.67918138]
[1693356996198,2.26993648,1723.6,1723.5,5.67918138]
[1693356997089,2.26993648,1723.6,1723.5,7.11276314]
[1693356997595,3.76509538,1723.7,1723.5,7.11276314]
[1693356998692,16.18933186,1723.8,1723.6,2.546]
[1693356999798,13.91939538,1723.8,1723.7,1.43358176]
[1693357000296,11.46189538,1723.8,1723.7,1.43358176]
[1693357001790,7.6968,1723.8,1723.7,1.43358176]
[1693357001987,2.4708,1723.8,1723.7,1.43358176]
[1693357002394,0.00870221,1723.9,1723.7,6.65958176]
[1693357002599,3.76509651,1723.8,1723.7,6.65958176]
[1693357003296,0.00870221,1723.9,1723.7,6.65958176]
[1693357003697,4.37924091,1723.9,1723.7,6.65958176]
[1693357004196,16.58462676,1724.1,1723.7,6.65958176]
[1693357004396,3.76567681,1723.8,1723.7,6.65958176]
[1693357004796,3.76567681,1723.8,1723.7,9.86738176]
[1693357005802,3.76567681,1723.8,1723.7,8.4338]
[1693357006097,2.26993648,1723.9,1723.7,8.4338]
[1693357007699,3.76659964,1723.8,1723.7,8.4338]
[1693357007901,10.70373648,1723.9,1723.6,4.9781]
[1693357008097,3.766484,1723.7,1723.6,10.2041]
[1693357008698,2.26993648,1723.8,1723.6,10.2041]
[1693357009899,2.26993648,1723.8,1723.7,1.43358176]
[1693357010200,5.226,1723.9,1723.7,1.43358176]
[1693357011396,7.53806496,1724.0,1723.8,5.226]
[1693357011600,4.68802848,1724.1,1723.9,8.4338]
[1693357011798,2.4802,1724.3,1724.0,5.226]
[1693357012000,5.0179,1724.3,1724.1,5.226]
[1693357012305,5.0179,1724.3,1724.2,1.43358176]
[1693357012503,2.5377,1724.3,1724.2,1.43358176]
[1693357012903,2.5377,1724.3,1724.1,5.226]
[1693357013111,2.5377,1724.3,1724.1,6.65958176]
[1693357013404,5.7455,1724.3,1724.1,6.65958176]
[1693357014708,6.21614829,1724.3,1724.1,6.65958176]
[1693357018702,4.52269986,1724.2,1724.1,6.65958176]
[1693357020005,17.35560162,1724.3,1724.1,6.65958176]
[1693357020206,6.21614829,1724.3,1724.1,6.65958176]
[1693357021709,2.26993648,1724.2,1724.0,10.12339968]
[1693357022007,2.26993648,1724.2,1724.0,4.89739968]
[1693357022203,13.40949015,1724.2,1724.0,2.48509968]
[1693357022408,7.73177373,1724.1,1724.0,2.48509968]
[1693357023007,8.4338,1724.1,1724.0,0.00869968]
[1693357023710,25.60292911,1724.1,1724.0,0.00869968]
[1693357025816,26.35662604,1724.1,1724.0,0.00869968]
[1693357027819,21.13062604,1724.1,1724.0,6.66828144]
[1693357028112,3.2078,1724.1,1724.0,6.66828144]
[1693357028309,9.24324996,1724.1,1724.0,6.66828144]
[1693357029314,8.4338,1724.1,1724.0,0.00869968]
[1693357030213,15.21707237,1724.1,1724.0,0.00869968]
[1693357030915,9.99107237,1724.1,1724.0,0.00869968]
[1693357035822,10.45540014,1724.1,1724.0,0.00869968]
[1693357037521,21.59569893,1724.1,1724.0,0.00869968]
[1693357037722,26.82169893,1724.1,1724.0,0.00869968]
[1693357037929,27.57539586,1724.1,1724.0,0.00869968]
[1693357044426,16.43509707,1724.1,1724.0,0.00869968]
[1693357044624,27.57648169,1724.1,1724.0,0.00869968]
[1693357046330,28.73688169,1724.1,1724.0,0.00869968]
[1693357047633,21.19991239,1724.1,1724.0,0.00869968]
[1693357047829,17.60032847,1724.1,1724.0,0.00869968]
[1693357048032,28.74220966,1724.1,1724.0,0.00869968]
[1693357048534,28.74205308,1724.1,1724.0,0.00869968]
[1693357049232,21.20040896,1724.1,1724.0,0.00869968]
[1693357049529,10.05852777,1724.1,1724.0,0.00869968]
[1693357055739,17.5987016,1724.1,1724.0,0.00869968]
[1693357055941,28.74058279,1724.1,1724.0,0.00869968]
[1693357062747,21.20040896,1724.1,1724.0,0.00869968]
[1693357062938,10.05852777,1724.1,1724.0,0.00869968]
[1693357070847,10.09688294,1724.1,1724.0,0.00669968]
[1693357071055,2.26993648,1724.0,1723.6,2.4595]
[1693357071252,15.22282586,1723.7,1723.6,2.4595]
[1693357071748,26.36470705,1723.7,1723.6,2.4595]
[1693357071947,28.63464353,1723.7,1723.6,2.4595]
[1693357072147,28.63464353,1723.7,1723.4,2.617]
[1693357072354,28.63464353,1723.7,1723.5,2.6497]
[1693357072355,11.26042005,1723.6,1723.5,2.6497]
[1693357073447,11.26042005,1723.6,1723.5,4.08328176]
[1693357073856,11.26042005,1723.6,1723.5,2.6497]
[1693357075348,11.26042005,1723.6,1723.5,4.08328176]
[1693357075755,11.26042005,1723.6,1723.5,2.6497]
[1693357076750,5.226,1723.6,1723.5,2.6497]
[1693357077352,11.26042005,1723.6,1723.5,2.6497]
[1693357081261,6.03442005,1723.6,1723.5,2.6497]
[1693357085160,6.03442005,1723.6,1723.5,4.08328176]
[1693357085671,6.03442005,1723.6,1723.5,9.30928176]
[1693357086673,6.49827833,1723.6,1723.5,9.30928176]
[1693357091468,5.74544957,1723.6,1723.5,9.30928176]
[1693357102482,5.74544957,1723.6,1723.5,12.51708176]
[1693357103778,4.70149129,1723.8,1723.5,13.67728176]
[1693357103981,4.70149129,1723.9,1723.7,8.4338]
[1693357104179,4.70149129,1723.9,1723.8,6.65958176]
[1693357104387,4.70149129,1723.9,1723.8,9.08848176]
[1693357104584,9.24222005,1724.1,1723.8,9.08848176]
[1693357104886,9.24222005,1724.1,1724.0,5.226]
[1693357105081,9.24222005,1724.1,1724.0,6.65958176]
[1693357105786,9.24222005,1724.1,1724.0,9.07508176]
[1693357108181,15.39974591,1724.2,1724.0,9.07508176]
[1693357108485,9.07236918,1724.2,1724.1,5.226]
[1693357109685,9.07236918,1724.2,1724.0,9.07508176]
[1693357112788,3.03794913,1724.2,1724.0,9.07508176]
[1693357114988,3.03794913,1724.2,1724.1,5.226]
[1693357115896,8.31223666,1724.2,1724.1,5.226]
[1693357117587,3.03794913,1724.2,1724.1,5.226]
[1693357118887,7.55776046,1724.2,1724.1,5.226]
[1693357127701,7.55776046,1724.2,1724.0,5.226]
[1693357127901,5.47773648,1724.1,1724.0,5.226]
[1693357128103,9.99754781,1724.1,1724.0,5.226]
[1693357131311,9.99754781,1724.1,1723.8,5.226]
[1693357131607,3.2078,1723.9,1723.8,5.226]
[1693357131811,5.47773648,1723.9,1723.8,5.226]
[1693357133201,5.47773648,1723.9,1723.7,2.547]
[1693357133406,5.226,1723.8,1723.5,5.68440005]
[1693357133603,3.76714022,1723.6,1723.5,5.226]
[1693357134198,5.47773648,1723.7,1723.5,5.226]
[1693357134409,3.76739921,1723.6,1723.5,5.226]
[1693357135007,5.47773648,1723.7,1723.5,5.226]
[1693357135502,5.47773648,1723.7,1723.4,2.53320297]
[1693357135705,5.226,1723.6,1723.4,0.00870297]
[1693357135905,2.26993648,1723.5,1723.4,0.00870297]
[1693357136107,5.47773648,1723.5,1723.4,0.00870297]
[1693357136509,9.99754781,1723.5,1723.4,0.00870297]
[1693357136705,5.47773648,1723.5,1723.4,0.00870297]
[1693357137808,9.99807995,1723.5,1723.4,0.00870297]
[1693357138006,5.47773648,1723.5,1723.4,0.00870297]
[1693357138401,9.99807995,1723.5,1723.4,0.00870297]
[1693357139512,5.47773648,1723.5,1723.4,0.00870297]
[1693357139813,15.22407995,1723.5,1723.4,0.00870297]
[1693357140114,20.14807995,1723.5,1723.4,0.00870297]
[1693357142920,15.62773648,1723.5,1723.4,0.00870297]
[1693357143113,7.95223648,1723.5,1723.4,0.00870297]
[1693357143315,5.47773648,1723.5,1723.4,1.44228473]
[1693357143510,3.2078,1723.5,1723.4,9.09738473]
[1693357145317,3.2078,1723.5,1723.4,7.66380297]
[1693357145814,3.67574405,1723.5,1723.4,7.66380297]
[1693357146709,7.43963727,1723.5,1723.4,7.66380297]
[1693357148619,7.43963727,1723.5,1723.4,9.09738473]
[1693357149218,7.43963727,1723.5,1723.4,7.66380297]
[1693357150120,7.43963727,1723.5,1723.4,9.09738473]
[1693357150316,4.23183727,1723.5,1723.4,9.09738473]
[1693357150511,0.46794405,1723.5,1723.4,9.09738473]
[1693357150715,3.76389322,1723.6,1723.4,9.09738473]
[1693357150914,3.01018422,1723.5,1723.4,9.09738473]
[1693357162721,3.46868536,1723.5,1723.4,9.09738473]
[1693357163629,0.45850114,1723.5,1723.4,5.23470297]
[1693357163925,3.76389322,1723.5,1723.4,9.20768473]
[1693357166534,3.76389322,1723.5,1723.4,7.77410297]
[1693357168833,3.76389322,1723.5,1723.4,9.20768473]
[1693357170538,2.6189,1723.6,1723.4,9.20768473]
[1693357171039,2.6189,1723.6,1723.4,7.77410297]
[1693357171630,7.13710478,1723.6,1723.4,7.77410297]
[1693357174433,7.14401863,1723.6,1723.4,7.77410297]
[1693357174936,7.14401863,1723.6,1723.4,5.23470297]
[1693357175540,4.52511863,1723.5,1723.4,5.23470297]
[1693357175738,5.47773648,1723.5,1723.4,5.23470297]
[1693357175940,10.00537763,1723.5,1723.4,0.00870297]
[1693357176639,5.47773648,1723.5,1723.4,0.00870297]
[1693357176832,15.98304154,1723.5,1723.4,0.00870297]
[1693357177039,16.85719393,1723.5,1723.1,5.226]
[1693357177337,9.75297302,1723.2,1722.9,7.7958]
[1693357177541,3.77241857,1723.0,1722.9,7.7958]
[1693357178236,3.77241857,1723.0,1722.9,2.5698]
[1693357178635,3.77241857,1723.0,1722.9,4.00338176]
[1693357179138,3.77241857,1723.0,1722.9,2.5698]
[1693357184145,10.0047095,1723.1,1722.9,2.5698]
[1693357185637,5.226,1723.0,1722.8,0.45830261]
[1693357185946,4.52697302,1722.9,1722.7,5.226]
[1693357186143,6.96557302,1722.9,1722.7,6.65958176]
[1693357186442,2.4386,1722.9,1722.7,6.65958176]
[1693357187443,3.76713201,1722.8,1722.7,6.65958176]
[1693357187636,3.76713636,1722.8,1722.7,6.65958176]
[1693357188042,3.76713636,1722.8,1722.7,5.226]
[1693357188242,3.76713636,1722.8,1722.7,6.65958176]
[1693357188543,4.70853648,1722.9,1722.7,5.226]
[1693357188743,3.7663895,1722.8,1722.7,5.226]
[1693357189152,3.7663895,1722.8,1722.6,5.226]
[1693357189448,6.03632598,1722.7,1722.6,5.226]
[1693357189641,9.04861404,1722.7,1722.6,5.226]
[1693357190248,5.28222454,1722.7,1722.6,5.226]
[1693357190552,9.04861404,1722.7,1722.6,5.226]
[1693357190746,12.25641404,1722.7,1722.5,10.81166065]